fUSD/lending_fUSD_20240214
["ID","MTS","AMOUNT","RATE_DAILY","PERIOD"]
[314015635,1707923553453,-664.33,0.00040821,7]
[314015636,1707923553462,-574.43,0.00040821,7]
[314015637,1707923553471,-582.92,0.00040821,7]
[314015638,1707923553480,-500.0,0.00040821,7]
[314015639,1707923553490,-709.41,0.00040821,7]
[314015640,1707923553499,-523.78,0.00040821,7]
[314015641,1707923553509,-584.12,0.00040821,7]
[314015642,1707923553519,-629.64,0.00040821,7]
[314015643,1707923553528,-549.4,0.00040821,7]
[314015644,1707923553538,-1007.67,0.00040821,7]
[314015645,1707923553547,-2090.09,0.00040821,7]
[314015646,1707923553557,-964.24,0.00040821,7]
[314015647,1707923553566,-500.0,0.00040821,7]
[314015648,1707923553575,-500.0,0.00040821,7]
[314015649,1707923553585,-633.52,0.00040821,7]
[314015650,1707923553594,-500.0,0.00040821,7]
[314015651,1707923553603,-1464.25,0.00040821,7]
[314015652,1707923553613,-1470.37,0.00040821,7]
[314015653,1707923553622,-500.0,0.00040821,7]
[314015654,1707923553631,-608.25,0.00040821,7]
[314015655,1707923553641,-760.6,0.00040821,7]
[314015656,1707923553651,-370.99895274,0.00040821,7]
[314015657,1707923553660,-547.73,0.00040821,7]
[314015658,1707923553670,-1725.04,0.00040821,7]
[314015659,1707923553682,-554.39,0.00040821,7]
[314015660,1707923553691,-1351.58,0.00040821,7]
[314015661,1707923553701,-638.35,0.00040821,7]
[314015662,1707923553711,-500.0,0.00040821,7]
[314015663,1707923553720,-619.45,0.00040821,7]
[314015664,1707923553730,-974.92,0.00040821,7]
[314015665,1707923553739,-855.82,0.00040821,7]
[314015666,1707923553749,-500.0,0.00040821,7]
[314015667,1707923553759,-1157.75,0.00040821,7]
[314015668,1707923553768,-896.42,0.00040821,2]
[314015669,1707923553777,-500.0,0.00040821,7]
[314015670,1707923553787,-645.60907978,0.00040821,7]
[314015671,1707923553797,-500.0,0.00040821,7]
[314015672,1707923553807,-544.41,0.00040821,7]
[314015673,1707923553816,-586.61,0.00040821,7]
[314015674,1707923553826,-500.0,0.00040821,20]
[314015675,1707923553835,-863.99,0.00040821,7]
[314015676,1707923553845,-500.0,0.00040821,7]
[314015677,1707923553854,-969.91,0.00040821,7]
[314015678,1707923553864,-500.0,0.00040821,7]
[314015679,1707923553874,-500.0,0.00040821,7]
[314015680,1707923553884,-597.96,0.00040821,2]
[314015681,1707923553894,-1237.52,0.00040821,7]
[314015682,1707923553905,-500.0,0.00040821,7]
[314015683,1707923553915,-500.0,0.00040821,7]
[314015684,1707923553925,-500.0,0.00040821,7]
[314015685,1707923553939,-686.48,0.00040821,7]
[314015686,1707923553949,-633.51,0.00040821,7]
[314015687,1707923553959,-1310.86,0.00040821,7]
[314015688,1707923553969,-500.0,0.00040821,7]
[314015689,1707923553979,-646.21,0.00040821,7]
[314015690,1707923553992,-643.81,0.00040821,7]
[314015691,1707923554002,-632.83,0.00040821,7]
[314015692,1707923554012,-1166.74,0.00040821,7]
[314015693,1707923554022,-500.0,0.00040821,7]
[314015694,1707923554031,-500.0,0.00040821,7]
[314015695,1707923554041,-252.44816773,0.00040821,7]
[314015696,1707923554050,-778.72,0.00040821,7]
[314015697,1707923554061,-537.19,0.00040821,7]
[314015698,1707923554071,-522.92,0.00040821,7]
[314015699,1707923554081,-500.0,0.00040821,7]
[314015700,1707923554091,-839.23,0.00040821,7]
[314015701,1707923554101,-500.0,0.00040821,7]
[314015702,1707923554111,-500.0,0.00040821,7]
[314015703,1707923554121,-540.0,0.00040821,7]
[314015704,1707923554130,-860.82,0.00040821,7]
[314015705,1707923554140,-710.26,0.00040821,7]
[314015706,1707923554150,-500.0,0.00040821,7]
[314015707,1707923554159,-594.3,0.00040821,7]
[314015708,1707923554169,-1376.8,0.00040821,7]
[314015709,1707923554181,-563.0,0.00040821,7]
[314015710,1707923554191,-689.41,0.00040821,7]
[314015711,1707923554201,-1735.17,0.00040821,7]
[314015712,1707923554210,-1292.66,0.00040821,7]
[314015713,1707923554220,-2576.99,0.00040821,7]
[314015714,1707923554229,-500.0,0.00040821,7]
[314015715,1707923554238,-165.01436891,0.00040821,7]
[314015716,1707923554249,-1880.82,0.00040821,7]
[314015717,1707923554258,-551.14,0.00040821,7]
[314015718,1707923554268,-1420.44,0.00040821,7]
[314015719,1707923554279,-713.29,0.00040821,7]
[314015720,1707923554289,-1306.77,0.00040821,7]
[314015721,1707923554300,-865.48,0.00040821,7]
[314015722,1707923554310,-500.0,0.00040821,7]
[314015723,1707923554320,-798.43,0.00040821,7]
[314015724,1707923554330,-792.44,0.00040821,7]
[314015725,1707923554341,-1762.73,0.00040821,7]
[314015726,1707923554352,-500.0,0.00040821,7]
[314015727,1707923554362,-566.85,0.00040821,7]
[314015728,1707923554374,-616.16,0.00040821,7]
[314015729,1707923554385,-500.0,0.00040821,7]
[314015730,1707923554395,-442.79231128,0.00040821,7]
[314015731,1707923554405,-721.07,0.00040821,7]
[314015732,1707923554416,-500.0,0.00040821,7]
[314015733,1707923554426,-501.48,0.00040821,7]
[314015734,1707923554440,-1882.77,0.00040821,7]
[314015735,1707923554451,-804.17,0.00040821,7]
[314015736,1707923554462,-500.0,0.00040821,7]
[314015737,1707923554472,-1538.55,0.00040821,7]
[314015738,1707923554484,-500.0,0.00040821,7]
[314015739,1707923554494,-500.0,0.00040821,7]
[314015740,1707923554504,-747.44,0.00040821,7]
[314015741,1707923554515,-500.0,0.00040821,7]
[314015742,1707923554525,-1390.73,0.00040821,7]
[314015743,1707923554536,-1109.74,0.00040821,7]
[314015744,1707923554546,-632.23,0.00040821,7]
[314015745,1707923554555,-500.0,0.00040821,7]
[314015746,1707923554566,-886.7,0.00040821,7]
[314015747,1707923554575,-500.0,0.00040821,7]
[314015748,1707923554586,-582.6,0.00040821,7]
[314015749,1707923554595,-500.0,0.00040821,2]
[314015750,1707923554606,-500.0,0.00040821,7]
[314015751,1707923554615,-631.42,0.00040821,7]
[314015752,1707923554625,-1281.5,0.00040821,7]
[314015753,1707923554635,-500.0,0.00040821,7]
[314015754,1707923554646,-500.0,0.00040821,7]
[314015755,1707923554656,-1512.4,0.00040821,7]
[314015756,1707923554666,-669.64,0.00040821,7]
[314015757,1707923554677,-500.0,0.00040821,7]
[314015758,1707923554692,-2645.87,0.00040821,7]
[314015759,1707923554702,-500.0,0.00040821,7]
[314015760,1707923554713,-649.97,0.00040821,7]
[314015761,1707923554722,-9592.87,0.00040821,7]
[314015762,1707923554732,-6589.39,0.00040821,7]
[314015763,1707923554742,-537.36,0.00040821,7]
[314015764,1707923554752,-500.0,0.00040821,7]
[314015765,1707923554762,-1074.08,0.00040821,7]
[314015766,1707923554773,-712.86,0.00040821,7]
[314015767,1707923554783,-10349.22,0.00040821,7]
[314015768,1707923554793,-500.0,0.00040821,7]
[314015769,1707923554803,-2138.7,0.00040821,7]
[314015770,1707923554812,-2522.18,0.00040821,7]
[314015771,1707923554822,-1253.86,0.00040821,7]
[314015772,1707923554832,-500.0,0.00040821,7]
[314015773,1707923554842,-775.14,0.00040821,7]
[314015774,1707923554852,-5438.42,0.00040821,7]
[314015775,1707923554862,-617.22,0.00040821,7]
[314015776,1707923554872,-5792.28,0.00040821,7]
[314015777,1707923554882,-1042.95,0.00040821,7]
[314015778,1707923554892,-500.0,0.00040821,7]
[314015779,1707923554903,-1305.25,0.00040821,7]
[314015780,1707923555066,-1375.63,0.00040821,7]
[314015781,1707923555099,-500.0,0.00040821,7]
[314015782,1707923555109,-1101.1,0.00040821,7]
[314015783,1707923555119,-1710.63,0.00040821,7]
[314015784,1707923555128,-3610.33,0.00040821,7]
[314015785,1707923555138,-1942.7,0.00040821,7]
[314015786,1707923555147,-656.71,0.00040821,7]
[314015787,1707923555157,-500.0,0.00040821,7]
[314015788,1707923555166,-508.16,0.00040821,7]
[314015789,1707923555176,-500.0,0.00040821,7]
[314015790,1707923555189,-500.0,0.00040821,7]
[314015791,1707923555199,-2795.61,0.00040821,7]
[314015792,1707923555209,-13119.1,0.00040821,7]
[314015793,1707923555218,-4841.93,0.00040821,7]
[314015794,1707923555228,-789.06,0.00040821,7]
[314015795,1707923555238,-3238.15,0.00040821,7]
[314015796,1707923555248,-1486.36,0.00040821,7]
[314015797,1707923555258,-1122.77,0.00040821,7]
[314015798,1707923555268,-805.46,0.00040821,7]
[314015799,1707923555279,-5897.47,0.00040821,7]
[314015800,1707923555289,-664.49,0.00040821,7]
[314015801,1707923555299,-1313.77,0.00040821,7]
[314015802,1707923555309,-574.19,0.00040821,7]
[314015803,1707923555319,-11522.74,0.00040821,7]
[314015804,1707923555328,-500.0,0.00040821,7]
[314015805,1707923555337,-1290.94,0.00040821,7]
[314015806,1707923555347,-520.12,0.00040821,7]
[314015807,1707923555356,-1511.05,0.00040821,7]
[314015808,1707923555365,-879.95,0.00040821,7]
[314015809,1707923555374,-6267.83,0.00040821,7]
[314015810,1707923555385,-2830.38,0.00040821,7]
[314015811,1707923555394,-763.78,0.00040821,7]
[314015812,1707923555403,-1371.91,0.00040821,7]
[314015813,1707923555413,-626.07,0.00040821,7]
[314015814,1707923555422,-4425.6,0.00040821,7]
[314015815,1707923555433,-500.0,0.00040821,7]
[314015816,1707923555442,-986.33,0.00040821,7]
[314015817,1707923555452,-45639.2,0.00040821,7]
[314015818,1707923555461,-5389.09,0.00040821,7]
[314015819,1707923555470,-1240.03,0.00040821,7]
[314015820,1707923555479,-558.68,0.00040821,7]
[314015821,1707923555489,-4636.49,0.00040821,7]
[314015822,1707923555498,-500.0,0.00040821,7]
[314015823,1707923555508,-5227.83,0.00040821,7]
[314015824,1707923555517,-525.56,0.00040821,7]
[314015825,1707923555526,-2461.93,0.00040821,7]
[314015826,1707923555535,-682.43,0.00040821,7]
[314015827,1707923555544,-1031.1,0.00040821,7]
[314015828,1707923555553,-1060.11,0.00040821,7]
[314015829,1707923555563,-3757.3,0.00040821,7]
[314015830,1707923555573,-741.06,0.00040821,7]
[314015831,1707923555582,-777.41,0.00040821,7]
[314015832,1707923555592,-838.79,0.00040821,7]
[314015833,1707923555601,-1479.6,0.00040821,7]
[314015834,1707923555610,-866.09,0.00040821,7]
[314015835,1707923555619,-3315.92,0.00040821,7]
[314015836,1707923555628,-8419.92,0.00040821,7]
[314015837,1707923555638,-1669.6,0.00040821,7]
[314015838,1707923555647,-1425.19,0.00040821,7]
[314015839,1707923555657,-941.92,0.00040821,7]
[314015840,1707923555667,-500.0,0.00040821,7]
[314015841,1707923555676,-1068.3,0.00040821,7]
[314015842,1707923555688,-978.39,0.00040821,7]
[314015843,1707923555697,-1743.01,0.00040821,7]
[314015844,1707923555707,-500.0,0.00040821,7]
[314015845,1707923555716,-527.53,0.00040821,7]
[314015846,1707923555726,-2618.16,0.00040821,7]
[314015847,1707923555735,-5014.41,0.00040821,7]
[314015848,1707923555745,-16404.96,0.00040821,7]
[314015849,1707923555755,-1253.74,0.00040821,7]
[314015850,1707923555765,-1428.29,0.00040821,7]
[314015851,1707923555774,-12919.21,0.00040821,7]
[314015852,1707923555784,-500.0,0.00040821,7]
[314015853,1707923555793,-725.51,0.00040821,7]
[314015854,1707923555803,-564.17,0.00040821,7]
[314015855,1707923555813,-670.32,0.00040821,7]
[314015856,1707923555822,-608.21,0.00040821,7]
[314015857,1707923555832,-3982.22,0.00040821,7]
[314015858,1707923555842,-15886.12,0.00040821,7]
[314015859,1707923555851,-2293.57,0.00040821,7]
[314015860,1707923555860,-1912.2,0.00040821,7]
[314015861,1707923555870,-1078.52,0.00040821,7]
[314015862,1707923555880,-1675.86,0.00040821,7]
[314015863,1707923555890,-4682.24,0.00040821,7]
[314015864,1707923555901,-998.25,0.00040821,7]
[314015865,1707923555911,-374.97779798,0.00040821,7]
[314015866,1707923555921,-1548.99,0.00040821,7]
[314015867,1707923555933,-1678.3,0.00040821,7]
[314015868,1707923555942,-2172.47,0.00040821,7]
[314015869,1707923555952,-4636.94,0.00040821,7]
[314015870,1707923555962,-905.58,0.00040821,7]
[314015871,1707923555973,-3347.59,0.00040821,7]
[314015872,1707923555986,-24853.72,0.00040821,7]
[314015873,1707923555996,-2682.03,0.00040821,7]
[314015874,1707923556006,-500.0,0.00040821,7]
[314015875,1707923556016,-741.23,0.00040821,7]
[314015876,1707923556026,-504.17,0.00040821,7]
[314015877,1707923556036,-4661.42,0.00040821,7]
[314015878,1707923556045,-644.02,0.00040821,7]
[314015879,1707923556055,-1447.91,0.00040821,7]
[314015880,1707923556066,-870.17,0.00040821,7]
[314015881,1707923556079,-575.73,0.00040821,2]
[314015882,1707923556088,-513.51,0.00040821,7]
[314015883,1707923556098,-13772.64,0.00040821,7]
[314015884,1707923556109,-734.67,0.00040821,7]
[314015885,1707923556118,-861.53,0.00040821,7]
[314015886,1707923556128,-4963.65,0.00040821,7]
[314015887,1707923556137,-4015.51,0.00040821,7]
[314015888,1707923556148,-1647.66,0.00040821,7]
[314015889,1707923556159,-500.0,0.00040821,7]
[314015890,1707923556170,-834.17,0.00040821,7]
[314015891,1707923556182,-1651.62,0.00040821,7]
[314015892,1707923556194,-1367.71,0.00040821,7]
[314015893,1707923556205,-705.01,0.00040821,7]
[314015894,1707923556215,-738.43,0.00040821,7]
[314015895,1707923556226,-500.0,0.00040821,7]
[314015896,1707923556236,-1232.76,0.00040821,7]
[314015897,1707923556247,-1605.94,0.00040821,7]
[314015898,1707923556257,-2624.93,0.00040821,7]
[314015899,1707923556268,-1397.98,0.00040821,7]
[314015900,1707923556279,-6303.05,0.00040821,7]
[314015901,1707923556290,-3882.2,0.00040821,7]
[314015902,1707923556300,-1424.26,0.00040821,7]
[314015903,1707923556311,-6796.38,0.00040821,7]
[314015904,1707923556322,-1430.04,0.00040821,7]
[314015905,1707923556333,-9115.46,0.00040821,7]
[314015906,1707923556343,-876.71,0.00040821,7]
[314015907,1707923556354,-6722.84,0.00040821,7]
[314015908,1707923556364,-1159.69,0.00040821,7]
[314015909,1707923556375,-1566.04,0.00040821,7]
[314015910,1707923556386,-5625.73,0.00040821,7]
[314015911,1707923556396,-742.15,0.00040821,7]
[314015912,1707923556407,-500.0,0.00040821,7]
[314015913,1707923556417,-1074.84,0.00040821,7]
[314015914,1707923556427,-21955.42,0.00040821,7]
[314015915,1707923556441,-1224.55,0.00040821,7]
[314015916,1707923556451,-10536.73,0.00040821,7]
[314015917,1707923556461,-500.0,0.00040821,7]
[314015918,1707923556471,-3349.17,0.00040821,7]
[314015919,1707923556481,-1141.82,0.00040821,7]
[314015920,1707923556491,-4103.23,0.00040821,7]
[314015921,1707923556501,-15646.43,0.00040821,7]
[314015922,1707923556511,-500.0,0.00040821,7]
[314015923,1707923556521,-580.0,0.00040821,7]
[314015924,1707923556531,-888.9,0.00040821,7]
[314015925,1707923556541,-849.7,0.00040821,7]
[314015926,1707923556551,-374.90152372,0.00040821,7]
[314015927,1707923556561,-1131.16,0.00040821,7]
[314015928,1707923556571,-970.39,0.00040821,7]
[314015929,1707923556581,-1000.0,0.00040821,30]
[314015930,1707923556590,-2458.64,0.00040821,7]
[314015931,1707923556600,-1032.81,0.00040821,7]
[314015932,1707923556609,-940.22,0.00040821,7]
[314015933,1707923556619,-845.63,0.00040821,7]
[314015934,1707923556629,-655.93,0.00040821,7]
[314015935,1707923556639,-2020.71,0.00040821,7]
[314015936,1707923556649,-861.05,0.00040821,7]
[314015937,1707923556659,-1868.07,0.00040821,7]
[314015938,1707923556668,-4353.77,0.00040821,7]
[314015939,1707923556679,-2136.24,0.00040821,7]
[314015940,1707923556694,-500.0,0.00040821,7]
[314015941,1707923556704,-3468.32,0.00040821,7]
[314015942,1707923556714,-1175.69,0.00040821,7]
[314015943,1707923556723,-4307.44,0.00040821,7]
[314015944,1707923556732,-2131.96,0.00040821,7]
[314015945,1707923556742,-4133.28,0.00040821,7]
[314015946,1707923556751,-3754.14,0.00040821,7]
[314015947,1707923556761,-500.0,0.00040821,7]
[314015948,1707923556770,-1200.28,0.00040821,7]
[314015949,1707923556780,-551.94,0.00040821,7]
[314015950,1707923556790,-2643.73,0.00040821,7]
[314015951,1707923556799,-1428.62,0.00040821,7]
[314015952,1707923556809,-1293.93,0.00040821,7]
[314015953,1707923556818,-4255.94,0.00040821,7]
[314015954,1707923556827,-593.47515895,0.00040821,7]
[314015955,1707923556837,-1073.43,0.00040821,7]
[314015956,1707923556846,-1154.7,0.00040821,7]
[314015957,1707923556855,-1681.08,0.00040821,7]
[314015958,1707923556864,-749.27,0.00040821,7]
[314015959,1707923556873,-696.07,0.00040821,7]
[314015960,1707923556883,-1992.67,0.00040821,7]
[314015961,1707923556892,-1960.66,0.00040821,7]
[314015962,1707923556902,-4598.11,0.00040821,7]
[314015963,1707923556912,-2148.61,0.00040821,7]
[314015964,1707923556921,-776.5,0.00040821,7]
[314015965,1707923556930,-876.47,0.00040821,7]
[314015966,1707923556942,-759.83,0.00040821,7]
[314015967,1707923556951,-907.63,0.00040821,7]
[314015968,1707923556960,-1863.83,0.00040821,7]
[314015969,1707923556970,-22229.37,0.00040821,7]
[314015970,1707923556979,-2233.48,0.00040821,7]
[314015971,1707923556990,-1407.78,0.00040821,7]
[314015972,1707923556999,-2807.7,0.00040821,7]
[314015973,1707923557009,-500.0,0.00040821,7]
[314015974,1707923557018,-749.48,0.00040821,7]
[314015975,1707923557029,-770.43,0.00040821,7]
[314015976,1707923557039,-500.0,0.00040821,7]
[314015977,1707923557048,-4409.87,0.00040821,7]
[314015978,1707923557057,-940.66,0.00040821,7]
[314015979,1707923557069,-1582.96,0.00040821,7]
[314015980,1707923557080,-778.24,0.00040821,7]
[314015981,1707923557089,-819.98,0.00040821,7]
[314015982,1707923557099,-501.61,0.00040821,7]
[314015983,1707923557108,-172.30313721,0.00040837,30]
[314015984,1707923557117,-150.0,0.00040851,3]
[314015985,1707923557127,-150.0,0.00040851,3]
[314015986,1707923557136,-10000.0,0.0004087,4]
[314015987,1707923557145,-3312.13,0.000409,7]
[314015988,1707923557155,-239.29468169,0.00040903,30]
[314015989,1707923557164,-154.41789369,0.00040905,30]
[314015990,1707923557173,-1000.0,0.0004091,15]
[314015991,1707923557186,-358.85958455,0.00040914,30]
[314015992,1707923557195,-239.29468169,0.0004092,30]
[314015993,1707923557204,-154.65466196,0.00040925,30]
[314015994,1707923557214,-154.65466196,0.00040926,30]
[314015995,1707923557223,-169.6360009,0.0004094,30]
[314015996,1707923557232,-161.42546737,0.00040941,30]
[314015997,1707923557241,-657.90689477,0.00040947,30]
[314015998,1707923557251,-151.021419,0.00040948,19]
[314015999,1707923557260,-164.02246197,0.00040952,30]
[314016000,1707923557269,-151.44662462,0.0004096,30]
[314016001,1707923557278,-179.16723059,0.00040964,30]
[314016002,1707923557287,-154.41789369,0.00040965,30]
[314016003,1707923557297,-235.13880492,0.00040976,30]
[314016004,1707923557306,-1823.2198167,0.0004098,30]
[314016005,1707923557315,-657.90689477,0.00040982,30]
[314016006,1707923557324,-200.0,0.00040987,5]
[314016007,1707923557334,-200.0,0.00040987,6]
[314016008,1707923557344,-239.29468169,0.00040994,30]
[314016009,1707923557353,-100000.0,0.00041,41]
[314016010,1707923557362,-800.0,0.00041,2]
[314016011,1707923557371,-200.0,0.00041,15]
[314016012,1707923557380,-300.0,0.00041,42]
[314016013,1707923557390,-6025.737735,0.00041,30]
[314016014,1707923557399,-570.13244787,0.00041,5]
[314016015,1707923557408,-12819.85817604,0.00041,10]
[314016016,1707923557418,-2000.0,0.00041,15]
[314016017,1707923557427,-20132.0,0.00041,30]
[314016018,1707923557439,-166.0,0.00041,2]
[314016019,1707923557449,-447.0,0.00041,2]
[314016020,1707923557458,-3000.0,0.00041,109]
[314016021,1707923557467,-30977.5170805,0.00041,12]
[314016022,1707923557477,-2110.0,0.00041,15]
[314016023,1707923557486,-7000.0,0.00041,5]
[314016024,1707923557496,-2758.42,0.00041,7]
[314016025,1707923557505,-21252.14815572,0.00041,4]
[314016026,1707923557514,-173796.83370052,0.00041,5]
[314016027,1707923557523,-1000.0,0.00041,120]
[314016028,1707923557532,-299.99999999,0.00041,24]
[314016029,1707923557541,-200.0,0.00041,17]
[314016030,1707923557550,-15012.0,0.00041,3]
[314016031,1707923557559,-300.0,0.00041,2]
[314016032,1707923557569,-150.0,0.00041014,30]
[314016033,1707923557578,-159.78994429,0.00041014,30]
[314016034,1707923557587,-153.271908,0.00041032,30]
[314016035,1707923557597,-159.6018291,0.00041032,30]
[314016036,1707923557606,-154.66461653,0.00041036,30]
[314016037,1707923557616,-150.0,0.00041039,3]
[314016038,1707923557625,-150.0,0.00041039,3]
[314016039,1707923557634,-358.85958455,0.00041045,30]
[314016040,1707923557644,-1709.0,0.0004105,2]
[314016041,1707923557653,-700.66031338,0.00041054,7]
[314016042,1707923557663,-154.66461653,0.00041071,30]
[314016043,1707923557672,-160.50924634,0.00041074,30]
[314016044,1707923557682,-239.29468169,0.00041085,30]
[314016045,1707923557695,-166.99392,0.00041085,4]
[314016046,1707923557705,-157.35051855,0.0004109,30]
[314016047,1707923557714,-154.57525399,0.00041094,30]
[314016048,1707923557722,-500.0,0.00041095,31]
[314016049,1707923557732,-530.90878656,0.00041095,30]
[314016050,1707923557741,-500.0,0.00041095,30]
[314016051,1707923557751,-547.49676391,0.00041095,30]
[314016052,1707923557760,-500.0,0.00041095,30]
[314016053,1707923557770,-500.0,0.00041095,30]
[314016054,1707923557779,-500.0,0.00041095,7]
[314016055,1707923557789,-636.47,0.00041095,7]
[314016056,1707923557799,-968.71,0.00041095,2]
[314016057,1707923557808,-968.71,0.00041095,2]
[314016058,1707923557818,-968.71,0.00041095,2]
[314016059,1707923557827,-968.71,0.00041095,2]
[314016060,1707923557837,-968.71,0.00041095,2]
[314016061,1707923557847,-968.71,0.00041095,2]
[314016062,1707923557856,-968.71,0.00041095,7]
[314016063,1707923557865,-968.71,0.00041095,7]
[314016064,1707923557875,-968.71,0.00041095,7]
[314016065,1707923557884,-968.71,0.00041095,7]
[314016066,1707923557893,-968.71,0.00041095,7]
[314016067,1707923557903,-968.71,0.00041095,7]
[314016068,1707923558080,-968.71,0.00041095,7]
[314016069,1707923558092,-968.71,0.00041095,7]
[314016070,1707923558102,-968.71,0.00041095,7]
[314016071,1707923558112,-968.71,0.00041095,7]
[314016072,1707923558121,-968.71,0.00041095,7]
[314016073,1707923558131,-500.0,0.00041095,7]
[314016074,1707923558141,-500.0,0.00041095,7]
[314016075,1707923558150,-600.79272438,0.00041095,7]
[314016076,1707923558159,-500.0,0.00041095,7]
[314016077,1707923558168,-500.0,0.00041095,7]
[314016078,1707923558178,-536.83,0.00041095,7]
[314016079,1707923558189,-511.55,0.00041095,7]
[314016080,1707923558199,-564.0,0.00041095,7]
[314016081,1707923558209,-500.0,0.00041095,7]
[314016082,1707923558217,-1240.83,0.00041095,7]
[314016083,1707923558227,-1171.11,0.00041095,7]
[314016084,1707923558236,-564.08,0.00041095,7]
[314016085,1707923558245,-1281.17,0.00041095,7]
[314016086,1707923558254,-1147.23,0.00041095,7]
[314016087,1707923558263,-500.0,0.00041095,7]
[314016088,1707923558272,-568.35,0.00041095,7]
[314016089,1707923558283,-1433.14,0.00041095,7]
[314016090,1707923558292,-530.02,0.00041095,7]
[314016091,1707923558302,-500.0,0.00041095,30]
[314016092,1707923558311,-503.2347784,0.00041095,30]
[314016093,1707923558320,-1489.83,0.00041095,7]
[314016094,1707923558330,-528.29,0.00041095,7]
[314016095,1707923558339,-1024.97,0.00041095,7]
[314016096,1707923558349,-569.56,0.00041095,7]
[314016097,1707923558359,-785.09,0.00041095,7]
[314016098,1707923558368,-1152.13,0.00041095,7]
[314016099,1707923558377,-1376.22,0.00041095,2]
[314016100,1707923558386,-500.0,0.00041095,7]
[314016101,1707923558396,-770.95,0.00041095,7]
[314016102,1707923558406,-1599.92,0.00041095,7]
[314016103,1707923558415,-500.0,0.00041095,7]
[314016104,1707923558425,-1153.23,0.00041095,7]
[314016105,1707923558436,-1045.09,0.00041095,7]
[314016106,1707923558445,-774.56,0.00041095,7]
[314016107,1707923558454,-1031.35,0.00041095,7]
[314016108,1707923558464,-548.76,0.00041095,7]
[314016109,1707923558473,-500.0,0.00041095,7]
[314016110,1707923558482,-661.87,0.00041095,7]
[314016111,1707923558491,-500.0,0.00041095,7]
[314016112,1707923558500,-584.37,0.00041095,7]
[314016113,1707923558509,-520.1,0.00041095,7]
[314016114,1707923558519,-1604.0,0.00041095,7]
[314016115,1707923558528,-500.0,0.00041095,7]
[314016116,1707923558537,-943.16,0.00041095,7]
[314016117,1707923558546,-644.22,0.00041095,7]
[314016118,1707923558555,-1264.92,0.00041095,7]
[314016119,1707923558564,-1136.26,0.00041095,7]
[314016120,1707923558573,-704.7,0.00041095,7]
[314016121,1707923558583,-570.14,0.00041095,7]
[314016122,1707923558592,-500.0,0.00041095,7]
[314016123,1707923558600,-553.03,0.00041095,7]
[314016124,1707923558610,-812.61,0.00041095,7]
[314016125,1707923558619,-519.06,0.00041095,7]
[314016126,1707923558628,-733.41,0.00041095,7]
[314016127,1707923558637,-1130.05,0.00041095,7]
[314016128,1707923558646,-674.48,0.00041095,7]
[314016129,1707923558656,-599.48,0.00041095,7]
[314016130,1707923558665,-699.45,0.00041095,7]
[314016131,1707923558674,-808.31,0.00041095,7]
[314016132,1707923558686,-647.83,0.00041095,7]
[314016133,1707923558695,-500.0,0.00041095,30]
[314016134,1707923558704,-500.0,0.00041095,30]